[Event "FIDE WCCC U10 2018"]
[Site "Santiago de Compostela"]
[Date "2018.11.09"]
[Round "5"]
[White "Nemsadze, Daviti"]
[Black "Royal, Shreyas"]
[Result "1-0"]
[ECO "A13"]
[WhiteElo "1762"]
[BlackElo "2048"]
[Annotator "NA RC"]
[PlyCount "97"]
[EventDate "2018.11.04"]
[EventType "swiss"]
[EventCountry "ESP"]
[SourceTitle "playchess.com"]
[Source "ChessBase"]
[SourceQuality "1"]
[TimeControl "40/5400+30:1800+30"]

{[%evp 14,97,17,32767,15,32767,20,32767,113,145,128,70,45,61,53,98,85,112,229,177,234,229,247,248,272,247,229,291,310,314,326,367,2684,243,236,285,239,264,280,261,314,399,285,292,368,354,339,328,610,32767,637,32767,833,652,32767,32767,32767,32767,32767,32767,32767,32767,32767,32767,32767,32767,32767,32767,32767,587,427,510,581,519,32767,0,32767,1068,896,1699,1397,5314,5306,32767,29992,29993]} 1. c4 {[%emt 0:00:00]} e6 {[%emt 0:00:01]} 2. Nf3 {[%emt 0:00:00]} d5 {[%emt 0:00:41]} 3. e3 {[%emt 0:00:00]} Nf6 {[%emt 0:02:01]} 4. b3 {[%emt 0:00:00]} c6 {[%emt 0:00:18]} 5. Bb2 {[%emt 0:00:00]} Nbd7 {[%emt 0:01:02]} 6. Qc2 {[%emt 0:02:15] A06: Zukertort-Eröffnung} Be7 {[%emt 0:01:26]} 7. Nc3 {[%emt 0:00:31]} O-O {[%emt 0:01:20]} 8. Be2 {[%emt 0:00:16]} (8. Rg1 Nc5 9. g4 Nfe4 10. g5 f5 11. d3 Nxg5 12. Nxg5 Bxg5 13. cxd5 cxd5 14. Nxd5 exd5 15. Qxc5 {½-½ (45) Artemiev,V (2706)-Grachev,B (2626) Sochi 2018}) 8... b6 {[%emt 0:01:27]} 9. Rg1 {[%emt 0:00:24]} dxc4 $146 {[%emt 0:07:32]} ({Vorgänger:} 9... c5 10. g4 Bb7 11. g5 Ne4 12. cxd5 exd5 13. Nxe4 dxe4 {½-½ (21) Zude,E (2394)-Keymer,V (2342) Saarbruecken 2015}) 10. bxc4 {[%emt 0:03:01]} h6 {[%emt 0:04:49] [#]} ({Better is} 10... b5 $14) 11. g4 $1 {[%emt 0:00:47]} Nh7 {[%emt 0:00:44]} 12. Bd3 {[%emt 0:01:35]} Ng5 {[%emt 0:01:04]} 13. Nxg5 {[%emt 0:00:18]} Bxg5 {[%emt 0:01:04]} 14. O-O-O {[%emt 0:00:53]} Bf6 {[%emt 0:06:50]} 15. f4 {[%emt 0:01:24]} Nc5 {[%emt 0:00:50]} (15... b5 $16) 16. Be2 {[%emt 0:00:57]} g6 {[%emt 0:01:13]} (16... e5 {was worth a try.}) 17. d4 {[%emt 0:00:56]} Na6 {[%emt 0:01:03]} 18. Ne4 {[%emt 0:00:28]} Bg7 {[%emt 0:00:48]} 19. g5 {[%emt 0:03:09]} hxg5 {[%emt 0:03:09]} 20. fxg5 {[%emt 0:00:26]} ({Schwächer ist} 20. Rxg5 Qe7 $16) 20... b5 {[%emt 0:00:50]} 21. d5 {[%emt 0:00:52]} ({Weniger gut wäre} 21. cxb5 cxb5 22. Nf6+ (22. Bxb5 Nb4 $14) 22... Bxf6 $16) 21... e5 {[%emt 0:01:05]} 22. dxc6 {[%emt 0:00:31]} Qa5 $2 {[%emt 0:00:08]} (22... Qb6) 23. cxb5 $2 {[%emt 0:00:13]} (23. Nf6+ Bxf6 24. gxf6) 23... Nb4 {[%emt 0:00:19]} 24. Qd2 {[%emt 0:02:33]} Bf5 {[%emt 0:01:17]} 25. a3 {[%emt 0:03:02]} Na2+ {[%emt 0:02:49]} 26. Kb1 {[%emt 0:00:08]} Bxe4+ {[%emt 0:00:35]} 27. Kxa2 {[%emt 0:00:06]} Qb6 {[%emt 0:01:05]} 28. Qb4 {[%emt 0:00:49]} Bc2 {[%emt 0:01:24]} 29. Rd2 {[%emt 0:03:24]} Bf5 {[%emt 0:00:07]} 30. Rg3 {[%emt 0:00:12]} Rfb8 $2 {[%emt 0:02:09]} (30... a6 31. e4 Be6+ 32. Bc4 Bxc4+ 33. Qxc4 axb5) 31. e4 {[%emt 0:03:49]} Be6+ {[%emt 0:02:06]} 32. Bc4 {[%emt 0:00:34]} a5 {[%emt 0:02:53]} 33. Qb3 {[%emt 0:02:21]} a4 {[%emt 0:01:31]} 34. Qb4 {[%emt 0:00:20]} Bf8 {[%emt 0:00:10]} 35. Qc3 {[%emt 0:00:06]} Qxb5 {[%emt 0:00:19]} 36. Bxe6 {[%emt 0:00:11]} fxe6 {[%emt 0:00:05]} 37. Qxe5 {[%emt 0:00:30]} Qc4+ {[%emt 0:00:05]} 38. Kb1 {[%emt 0:01:52]} Qf1+ {[%emt 0:03:21]} 39. Kc2 {[%emt 0:01:15]} Qc4+ {[%emt 0:03:31]} 40. Rc3 {[%emt 0:00:00]} Qa2 {[%emt 0:00:00]} 41. Rcd3 {[%emt 0:04:38]} Qc4+ {[%emt 0:01:11]} 42. Kd1 {[%emt 0:00:09]} Rxb2 {[%emt 0:03:49]} 43. Qxb2 {[%emt 0:00:11]} Qxe4 {[%emt 0:00:12]} 44. Qc3 $2 {[%emt 0:07:42]} ({White must play} 44. c7 $18) 44... Rc8 {[%emt 0:01:44]} 45. c7 {[%emt 0:02:16]} Qh1+ {[%emt 0:00:31]} 46. Kc2 {[%emt 0:00:28]} Qb7 {[%emt 0:00:07]} 47. Rd7 {[%emt 0:00:11]} Qe4+ {[%emt 0:00:27]} 48. Kb2 {[%emt 0:00:48]} e5 {[%emt 0:04:18]} 49. Qh3 {[%emt 0:01:25]} 1-0

[Event "FIDE WCCC U10 2018"]
[Site "Santiago de Compostela"]
[Date "2018.11.09"]
[Round "5"]
[White "Giang, Tran Nam"]
[Black "Kadam Om Manish"]
[Result "0-1"]
[ECO "B92"]
[WhiteElo "1747"]
[BlackElo "2025"]
[Annotator "NA RC"]
[PlyCount "70"]
[EventDate "2018.11.04"]
[EventType "swiss"]
[EventCountry "ESP"]
[SourceTitle "playchess.com"]
[Source "ChessBase"]
[SourceQuality "1"]
[TimeControl "40/5400+30:1800+30"]

{[%evp 24,68,58,43,37,11,12,-13,-9,-17,-17,0,34,43,46,30,42,-23,32767,32767,32767,0,32767,32767,32767,32767,32767,32767,0,-270,-289,-278,32767,-255,-269,-1729,-510,32767,32767,-975,-1754,32767,32767,-1828,-384,-2492,-3713]} 1. e4 {[%emt 0:00:00]} c5 {[%emt 0:00:00]} 2. Nf3 {[%emt 0:00:00]} d6 {[%emt 0:00:00]} 3. d4 {[%emt 0:00:00]} cxd4 {[%emt 0:00:00]} 4. Nxd4 {[%emt 0:00:00]} Nf6 {[%emt 0:00:00]} 5. Nc3 {[%emt 0:00:05]} a6 {[%emt 0:00:01]} 6. Be2 {[%emt 0:00:05]} e5 {[%emt 0:00:07]} 7. Nb3 {[%emt 0:00:05]} Be7 {[%emt 0:00:11]} 8. Bg5 {[%emt 0:00:13]} Nbd7 {[%emt 0:01:55]} 9. a4 {[%emt 0:00:14]} b6 {[%emt 0:00:14]} 10. Bc4 {[%emt 0:00:13]} Bb7 {[%emt 0:00:55]} 11. Qe2 {[%emt 0:00:53]} O-O {[%emt 0:00:42]} 12. O-O {[%emt 0:02:15]} Qc8 {[%emt 0:08:41] B92: Sicilian Najdorf: 6 Be2} (12... Ne8 13. Be3 Nc7 14. Rfd1 Kh8 15. Nd2 Bc6 16. Nf1 f5 17. exf5 Qc8 18. Qd3 Nf6 19. Bxb6 Bxg2 20. Bxc7 Bxf1 21. Rxf1 Qxc7 {½-½ (45) Buksa,N (2337)-Tomczak,J (2600) Warsaw 2018}) 13. Rad1 $146 {[%emt 0:02:49]} ({Predecessor:} 13. Rfd1 Bc6 14. Bxf6 Nxf6 15. Nd5 Bxd5 16. Bxd5 Ra7 17. c3 g6 18. Rd3 Kg7 19. Nd2 Rc7 20. Nf1 {1-0 (40) Xu,Y (2487)-Dworakowska,J (2393) Mallorca 2004}) 13... Bc6 {[%emt 0:01:03]} 14. Bxf6 {[%emt 0:05:41]} Nxf6 {[%emt 0:00:28]} 15. Bd5 {[%emt 0:01:26]} Nxd5 {[%emt 0:01:58]} 16. Nxd5 {[%emt 0:01:09]} Bd8 {[%emt 0:27:10]} 17. Nc3 {[%emt 0:05:32]} Bc7 {[%emt 0:02:39]} 18. Nd2 {[%emt 0:05:03]} Qb7 {[%emt 0:02:44]} 19. Nc4 {[%emt 0:05:14]} Rad8 {[%emt 0:02:30]} 20. f3 {[%emt 0:06:53]} (20. Nd5 $14) 20... f5 {[%emt 0:07:50]} 21. Ne3 {[%emt 0:09:09]} fxe4 {[%emt 0:15:57]} 22. fxe4 {[%emt 0:01:16]} b5 {[%emt 0:07:15]} 23. axb5 {[%emt 0:01:23]} axb5 {[%emt 0:00:00]} 24. Rxf8+ {[%emt 0:05:46]} Rxf8 {[%emt 0:00:09]} 25. Nf5 {[%emt 0:00:31]} Kh8 {[%emt 0:02:58]} 26. Nxd6 $2 {[%emt 0:01:53]} (26. b4 $11) 26... Bxd6 {[%emt 0:04:17]} 27. Rxd6 {[%emt 0:00:44]} b4 {[%emt 0:00:50]} 28. Nd1 {[%emt 0:03:24] [#]} Bb5 $1 {[%emt 0:02:20]} ({Inferior is} 28... Bxe4 29. c4 $11) 29. Qe1 $2 {[%emt 0:08:53] [#]} ({Falsch wäre} 29. Qf2 $2 Kg8 $19) (29. Rd3 Bxd3 30. cxd3) 29... Qa7+ {[%emt 0:00:29]} (29... Qxe4 $142 $1 {[%cal Re4e1][%mdl 512]} 30. Qf2 (30. Qxe4 Rf1#) 30... Kg8) 30. Nf2 {[%emt 0:00:28]} Rxf2 {[%emt 0:00:10]} 31. Kh1 {[%emt 0:01:38]} h6 {[%emt 0:00:10]} 32. Rd8+ {[%emt 0:02:48]} Kh7 {[%emt 0:00:06]} 33. Rd1 $19 {[%emt 0:00:20]} Rf1+ {[%emt 0:00:03]} 34. Qxf1 {[%emt 0:00:06]} Bxf1 35. Rxf1 {[%emt 0:00:02]} Qd4 {[%emt 0:00:09]} 0-1

[Event "FIDE WCCC U10 2018"]
[Site "Santiago de Compostela"]
[Date "2018.11.09"]
[Round "5"]
[White "Anand, Batsukh"]
[Black "Xue, Haowen"]
[Result "1/2-1/2"]
[ECO "B30"]
[WhiteElo "1746"]
[BlackElo "2025"]
[Annotator "NA RC"]
[PlyCount "107"]
[EventDate "2018.11.04"]
[EventType "swiss"]
[EventCountry "ESP"]
[SourceTitle "playchess.com"]
[Source "ChessBase"]
[SourceQuality "1"]
[TimeControl "40/5400+30:1800+30"]

{[%evp 12,107,19,7,16,-12,-1,-17,-9,-10,0,-11,8,0,25,0,0,32767,32767,32767,32767,32767,32767,-12,32767,32767,-7,-35,32767,-72,-52,-64,-7,32767,-106,32767,32767,32767,-40,32767,-22,-75,-35,32767,32767,-256,-259,-532,-233,-245,32767,32767,-218,32767,-246,32767,-176,-217,32767,32767,32767,32767,32767,-242,32767,-239,-271,32767,-227,-202,32767,-232,-231,-205,-190,-214,-152,-201,-195,-234,-218,-216,-216,-227,-222,-226,-140,-140,-117,32767,-8,-54,-19,-25,-54,-8,-7,-239]} 1. e4 {[%emt 0:01:16]} c5 {[%emt 0:00:00]} 2. Nf3 {[%emt 0:01:33]} Nc6 {[%emt 0:00:04]} 3. Bb5 {[%emt 0:01:18]} e6 {[%emt 0:00:18]} 4. Bxc6 {[%emt 0:01:44]} bxc6 {[%emt 0:00:18]} 5. d3 {[%emt 0:01:19]} Ne7 {[%emt 0:01:03]} 6. h4 {[%emt 0:03:57]} f6 {[%emt 0:12:08] LiveBook: 7 Partien B30: Sicilian: 2...Nc6 3 Bb5, lines without ...g6} 7. O-O $146 {[%emt 0:15:46]} ({Predecessor:} 7. Be3 d6 8. c3 Rb8 9. Qc2 e5 10. d4 Ba6 11. dxe5 fxe5 12. Na3 Nc8 13. Qa4 Bb5 14. Nxb5 cxb5 {1-0 (61) Grib,R (2427)-Bartel,M (2608) Suwalki 2017}) 7... e5 {[%emt 0:02:47]} 8. c3 {[%emt 0:01:37]} d6 {[%emt 0:04:00]} 9. d4 {[%emt 0:03:37]} cxd4 {[%emt 0:03:34]} 10. cxd4 {[%emt 0:00:10]} Bg4 {[%emt 0:00:22]} 11. Be3 {[%emt 0:03:15]} Ng6 {[%emt 0:15:30]} 12. Qc2 {[%emt 0:02:53]} Qd7 {[%emt 0:04:46]} 13. Nh2 {[%emt 0:02:03]} Be6 {[%emt 0:01:15]} 14. Nf3 {[%emt 0:07:34]} h5 {[%emt 0:03:49]} 15. Nc3 {[%emt 0:02:57]} Be7 {[%emt 0:02:02]} 16. d5 {[%emt 0:00:20]} cxd5 {[%emt 0:01:00]} 17. Nxd5 {[%emt 0:01:08]} Bxd5 {[%emt 0:00:29]} 18. exd5 {[%emt 0:00:35]} Kf7 {[%emt 0:00:18]} 19. g3 {[%emt 0:09:53]} Rhc8 {[%emt 0:04:16]} 20. Qd2 {[%emt 0:01:37]} Bd8 {[%emt 0:04:44]} 21. Rfc1 {[%emt 0:06:34]} Qb7 {[%emt 0:10:37]} 22. b3 {[%emt 0:08:08]} Ne7 {[%emt 0:01:47]} 23. Rxc8 {[%emt 0:01:44]} Rxc8 {[%emt 0:00:45]} 24. Rd1 {[%emt 0:00:59]} Bb6 {[%emt 0:03:26]} (24... Qb5 $17 25. Ne1 Ba5) 25. Bxb6 {[%emt 0:06:18]} axb6 {[%emt 0:01:57]} 26. Qd3 {[%emt 0:01:32]} (26. Qe2 $1 $11) 26... Qd7 {[%emt 0:09:11]} 27. b4 {[%emt 0:05:57]} Qa4 {[%emt 0:02:48]} 28. Rd2 {[%emt 0:02:49]} (28. Nh2 {was necessary.}) 28... Qxb4 {[%emt 0:01:17]} 29. Qh7 $2 {[%emt 0:00:51]} (29. Ne1) 29... Qg4 {[%emt 0:00:42]} (29... Rc1+ $142 30. Kg2 e4 31. Qxh5+ g6 32. Qh7+ Ke8) 30. Nh2 {[%emt 0:00:34]} Qg6 {[%emt 0:00:50]} 31. Qxg6+ {[%emt 0:00:06]} Kxg6 {[%emt 0:00:25]} 32. Nf1 {[%emt 0:00:31]} Rc5 {[%emt 0:04:07]} 33. Ne3 {[%emt 0:00:11]} Kf7 {[%emt 0:01:15]} 34. Kg2 {[%emt 0:01:13]} (34. a4 $17) 34... f5 {[%emt 0:00:50]} 35. f4 {[%emt 0:00:12]} e4 {[%emt 0:00:09]} 36. Kf2 {[%emt 0:00:36]} Ke8 {[%emt 0:00:19]} 37. a4 {[%emt 0:01:05]} Kd7 {[%emt 0:00:27]} 38. Rd4 {[%emt 0:00:50]} g6 {[%emt 0:00:19]} 39. Ke2 {[%emt 0:00:32]} b5 {[%emt 0:01:46]} 40. axb5 {[%emt 0:00:00]} Rxb5 {[%emt 0:00:00]} 41. Kd2 {[%emt 0:03:06]} Rb3 {[%emt 0:05:22]} 42. Ke2 {[%emt 0:01:28]} Ng8 {[%emt 0:01:48]} 43. Ra4 {[%emt 0:02:25]} Rb7 {[%emt 0:12:06]} 44. Ra6 {[%emt 0:00:18] [#]} Ne7 $1 {[%emt 0:00:33]} 45. Nc4 {[%emt 0:01:27]} Nc8 {[%emt 0:00:11]} 46. Ne3 {[%emt 0:01:54]} Rb2+ {[%emt 0:02:47]} 47. Ke1 {[%emt 0:00:16]} Rb5 {[%emt 0:00:56]} 48. Ke2 {[%emt 0:05:36]} Kc7 {[%emt 0:00:44]} 49. Rc6+ {[%emt 0:00:51]} Kb8 {[%emt 0:01:10]} 50. Nc4 {[%emt 0:00:21] [#]} Rb3 $11 {[%emt 0:03:12]} ({And not} 50... Rxd5 {[#]} 51. Rxc8+ $1 {[%mdl 512]} Kxc8 52. Nb6+ Kc7 53. Nxd5+ Kc6 54. Nf6 $16) (50... Rc5 $1 $17 {[%cal Rc5c6]} 51. Rxc5 dxc5) 51. Nxd6 {[%emt 0:01:19]} Nxd6 {[%emt 0:00:28]} 52. Rxd6 {[%emt 0:00:06]} Rxg3 {[%emt 0:00:24]} 53. Rc6 {[%emt 0:00:53]} Kb7 {[%emt 0:01:51]} 54. Rc1 $2 {[%emt 0:00:27]} (54. Kd2 $11 {and White stays safe.}) 1/2-1/2

[Event "FIDE WCCC U10 2018"]
[Site "Santiago de Compostela"]
[Date "2018.11.09"]
[Round "5"]
[White "Deuer, Marius"]
[Black "Zhong, Kevin"]
[Result "1-0"]
[ECO "D34"]
[WhiteElo "1695"]
[BlackElo "2038"]
[Annotator "NA RC"]
[PlyCount "120"]
[EventDate "2018.11.04"]
[EventType "swiss"]
[EventCountry "ESP"]
[SourceTitle "playchess.com"]
[Source "ChessBase"]
[SourceQuality "1"]
[TimeControl "40/5400+30:1800+30"]

{[%evp 24,118,91,105,80,70,95,97,94,106,32767,32767,32767,32767,32767,32767,127,32767,125,122,32767,169,32767,32767,97,32767,32767,32767,32767,32767,104,64,69,46,44,18,14,32767,19,32767,47,64,85,86,32767,91,32767,104,104,111,145,140,129,142,147,121,141,138,176,134,157,100,147,158,158,102,97,32767,32767,0,32767,32767,32767,32767,75,80,85,32767,159,126,149,179,173,195,187,215,223,248,248,309,350,392,32767,485,12841,8048,4622]} 1. d4 {[%emt 0:00:00]} d5 {[%emt 0:00:00]} 2. c4 {[%emt 0:00:00]} e6 {[%emt 0:00:00]} 3. Nf3 {[%emt 0:00:00]} c5 {[%emt 0:00:12]} 4. cxd5 {[%emt 0:00:07]} exd5 {[%emt 0:00:08]} 5. Nc3 {[%emt 0:00:19]} Nc6 {[%emt 0:00:09]} 6. g3 {[%emt 0:00:04]} Nf6 {[%emt 0:00:07]} 7. Bg2 {[%emt 0:00:04]} Be7 {[%emt 0:00:08]} 8. O-O {[%emt 0:00:06]} O-O {[%emt 0:00:13]} 9. Bg5 {[%emt 0:00:04]} c4 {[%emt 0:00:07]} 10. e3 {[%emt 0:00:50] D34: Tarrasch Defence: 6 g3 Nf6 7 Bg2 Be7} Be6 {[%emt 0:07:14]} 11. b3 {[%emt 0:01:50]} Qa5 {[%emt 0:01:40]} (11... cxb3 12. Qxb3 Na5 13. Qb2 Ne4 14. Nxe4 dxe4 15. Bxe7 Qxe7 16. Nd2 Nc4 17. Nxc4 Bxc4 {1-0 (42) Ding,L (2778)-Mamedov,R (2704) Shamkir 2018}) 12. Ne2 {[%emt 0:02:23]} h6 $146 {[%emt 0:25:19]} ({Predecessor:} 12... Rac8 13. bxc4 dxc4 14. Qb1 Bf5 15. Qxb7 Bd3 16. Bxf6 Bxf6 17. Rfe1 Nb4 18. Nc3 Nc2 19. Nd5 Nxa1 20. Nxf6+ gxf6 21. Rxa1 c3 22. Qb3 Bg6 23. Rc1 c2 {0-1 (23) Bucher,H-Heppekausen,J GER corr 1997}) 13. Bxf6 $1 {[%emt 0:07:44]} Bxf6 {[%emt 0:00:28]} 14. bxc4 {[%emt 0:06:14]} dxc4 {[%emt 0:00:09]} 15. Nf4 {[%emt 0:04:12]} Bf5 {[%emt 0:07:09] [#]} 16. Nd2 $1 {[%emt 0:17:23]} Qa6 {[%emt 0:11:55]} 17. Nd5 {[%emt 0:07:43]} Bd8 {[%emt 0:01:30]} 18. Ne4 {[%emt 0:08:06]} Bxe4 {[%emt 0:03:23]} 19. Bxe4 {[%emt 0:01:25]} Rc8 {[%emt 0:10:39]} 20. a4 {[%emt 0:09:18]} Ne7 {[%emt 0:01:50]} 21. Qg4 {[%emt 0:03:59]} Kh8 {[%emt 0:11:24]} 22. Nxe7 {[%emt 0:04:52]} Bxe7 {[%emt 0:00:11]} 23. Qd7 {[%emt 0:00:06]} Qe6 {[%emt 0:00:27]} 24. Qxe6 {[%emt 0:02:31]} fxe6 {[%emt 0:00:03]} 25. Bxb7 {[%emt 0:00:08]} Rc7 {[%emt 0:00:25]} 26. Be4 {[%emt 0:01:34]} c3 {[%emt 0:01:29]} 27. Bc2 {[%emt 0:00:09]} Rb8 {[%emt 0:01:47]} 28. Rfb1 {[%emt 0:00:58]} Rb2 {[%emt 0:01:29]} 29. Be4 {[%emt 0:00:49]} g5 {[%emt 0:04:19]} 30. Kg2 {[%emt 0:08:41]} Rd2 {[%emt 0:03:45]} 31. Rc1 {[%emt 0:01:42]} g4 {[%emt 0:00:58]} 32. Rc2 {[%emt 0:03:58]} Kg7 {[%emt 0:01:58]} 33. Rac1 {[%emt 0:01:13]} Rxc2 {[%emt 0:01:35]} 34. Bxc2 {[%emt 0:04:50]} Rb7 {[%emt 0:00:53]} 35. Bd1 {[%emt 0:00:34]} Rc7 {[%emt 0:01:43]} 36. Rc2 {[%emt 0:01:53]} ({Not} 36. Bxg4 c2 $15) 36... h5 {[%emt 0:00:34]} 37. h3 {[%emt 0:00:37]} gxh3+ {[%emt 0:00:40]} 38. Kxh3 {[%emt 0:00:05]} Kg6 {[%emt 0:00:08]} 39. Be2 {[%emt 0:00:31]} Kg5 {[%emt 0:00:48]} 40. Kg2 {[%emt 0:00:00]} Ba3 {[%emt 0:00:00]} 41. Bd3 {[%emt 0:06:44]} Bb2 {[%emt 0:02:46]} 42. Kf3 {[%emt 0:02:04]} Rb7 {[%emt 0:01:43]} 43. Ke4 {[%emt 0:07:31]} Kf6 {[%emt 0:00:27]} 44. Re2 {[%emt 0:03:58]} h4 {[%emt 0:03:15]} 45. f4 {[%emt 0:03:31]} hxg3 {[%emt 0:00:40]} 46. Kf3 {[%emt 0:00:12]} Rg7 {[%emt 0:00:42]} 47. Rg2 {[%emt 0:00:05]} Bc1 {[%emt 0:00:29]} 48. e4 {[%emt 0:00:06]} Rd7 {[%emt 0:01:37] [#]} (48... Ke7 $11 {remains equal.}) 49. e5+ $1 {[%emt 0:01:35]} Ke7 {[%emt 0:04:21]} 50. Ke4 {[%emt 0:00:57]} Bb2 {[%emt 0:04:02] [#]} ({Better is} 50... Rd8 $14) 51. Bc2 $1 {[%emt 0:00:32]} ({Und nicht} 51. Rxg3 Rxd4+ 52. Ke3 Rxa4 $11) 51... Rd8 {[%emt 0:01:35]} 52. Rxg3 {[%emt 0:01:00]} Rh8 {[%emt 0:00:28]} 53. Rg7+ {[%emt 0:02:56]} Kf8 {[%emt 0:00:13] [#]} 54. Rg2 $1 {[%emt 0:02:13]} ({Minderwertig wäre} 54. Rxa7 Rh2 $11) 54... Rh1 {[%emt 0:00:50]} 55. Bb3 {[%emt 0:02:15]} Re1+ {[%emt 0:02:46]} 56. Kd3 {[%emt 0:00:29]} Rf1 {[%emt 0:00:39]} 57. Bxe6 {[%emt 0:03:48]} Rxf4 {[%emt 0:00:18]} 58. d5 {[%emt 0:00:56]} c2 $2 {[%emt 0:06:24]} (58... Rd4+ 59. Ke3 (59. Kc2 Rd2+ 60. Rxd2 cxd2 $16) 59... Rd2 60. Rg8+ (60. Rxd2 cxd2 61. Kxd2 Bxe5 $14) 60... Ke7 61. Rg7+ Kf8 62. Rf7+ Ke8) 59. d6 {[%emt 0:00:58]} Rf7 $18 {[%emt 0:03:45]} 60. Kxc2 {[%emt 0:00:23]} Ke8 1-0

[Event "FIDE WCCC U10 2018"]
[Site "Santiago de Compostela"]
[Date "2018.11.09"]
[Round "5"]
[White "Suleymanov, Ali"]
[Black "Vagman, Roy"]
[Result "0-1"]
[ECO "A48"]
[WhiteElo "1667"]
[BlackElo "1970"]
[Annotator "NA RC"]
[PlyCount "120"]
[EventDate "2018.11.04"]
[EventType "swiss"]
[EventCountry "ESP"]
[SourceTitle "playchess.com"]
[Source "ChessBase"]
[SourceQuality "1"]
[TimeControl "40/5400+30:1800+30"]

{[%evp 18,120,-1,32767,-7,32767,-17,-14,3,0,26,26,54,5,29,12,17,-42,32767,32767,32767,32767,32767,32767,-18,32767,32767,32767,32767,32767,32767,32767,32767,-177,-170,32767,32767,-251,-331,32767,-431,-507,-559,32767,32767,32767,-426,-523,-523,-519,-548,32767,-549,-567,32767,32767,-493,32767,32767,-378,-390,-385,-409,-416,-423,32767,-450,-423,-477,32767,32767,-552,32767,32767,32767,32767,32767,32767,-471,-582,-633,-808,-962,-879,-1017,-1245,-1595,-1447,-974,-1300,32767,32767,32767,32767,32767,32767,32767,-1660,-1965,-1838,-2530,-2115,-4265,-29990,-29991]} 1. d4 {[%emt 0:00:00]} Nf6 {[%emt 0:00:00]} 2. Nf3 {[%emt 0:00:00]} g6 {[%emt 0:00:11]} 3. e3 {[%emt 0:00:00]} Bg7 {[%emt 0:01:04]} 4. Bd3 {[%emt 0:00:00]} d5 {[%emt 0:00:28]} 5. O-O {[%emt 0:00:15]} O-O {[%emt 0:00:46]} 6. b3 {[%emt 0:00:05]} b6 {[%emt 0:02:15] D04: Colle System} 7. Bb2 {[%emt 0:00:08]} Bb7 {[%emt 0:00:19]} 8. Nbd2 {[%emt 0:00:29]} e6 {[%emt 0:01:53]} (8... Nbd7 9. c4 e6 10. Rc1 dxc4 11. Nxc4 Qe7 12. Ba3 c5 13. Qe2 Rac8 14. Nfe5 Nxe5 15. dxe5 {½-½ (45) Nakamura,H (2786)-Caruana,F (2802) chess.com INT 2017}) 9. Qe2 {[%emt 0:02:46]} Nbd7 {[%emt 0:01:32] LiveBook: 3 Games} 10. Ne5 $146 {[%emt 0:02:35]} ({Predecessor:} 10. Rad1 a5 11. e4 Nh5 12. g3 dxe4 13. Bxe4 Bxe4 14. Nxe4 Nhf6 15. Ne5 Nxe4 16. Qxe4 {0-1 (26) Balashov,Y (2408)-Kovalenko,I (2680) Minsk 2015}) 10... Nxe5 {[%emt 0:07:52]} 11. dxe5 {[%emt 0:00:16]} Nd7 {[%emt 0:01:21]} 12. f4 {[%emt 0:01:46]} Re8 {[%emt 0:02:14]} 13. c4 {[%emt 0:05:16]} Rc8 {[%emt 0:08:29]} 14. Rad1 {[%emt 0:12:39]} Qe7 {[%emt 0:06:51]} 15. Bc2 {[%emt 0:07:48]} Ba6 {[%emt 0:04:32]} 16. Rfe1 {[%emt 0:04:26]} Red8 {[%emt 0:05:59]} 17. Qf3 {[%emt 0:04:54]} (17. Bd3 $11) 17... dxc4 {[%emt 0:01:32]} 18. Nxc4 {[%emt 0:06:09]} Bxc4 {[%emt 0:01:12]} 19. bxc4 {[%emt 0:01:11]} Qb4 {[%emt 0:01:17]} 20. Bb3 {[%emt 0:03:33]} a5 {[%emt 0:05:03]} ({Günstiger ist} 20... Nc5 $17 21. Rxd8+ Rxd8) 21. e4 {[%emt 0:14:29]} a4 {[%emt 0:03:11]} 22. Bc3 {[%emt 0:00:41]} Qa3 {[%emt 0:00:21]} 23. Bc2 {[%emt 0:04:20]} Qxa2 {[%emt 0:01:06]} 24. Qe2 {[%emt 0:05:37]} Qa3 {[%emt 0:02:38]} 25. Qe3 {[%emt 0:02:46]} Bf8 {[%emt 0:06:43]} 26. Kh1 {[%emt 0:03:43]} Bb4 {[%emt 0:01:57]} 27. Bxb4 {[%emt 0:07:22]} Qxb4 {[%emt 0:00:11]} 28. Qe2 {[%emt 0:00:50]} Nc5 {[%emt 0:02:06]} 29. Rxd8+ {[%emt 0:01:47]} Rxd8 {[%emt 0:00:02]} 30. Rd1 {[%emt 0:00:21]} Ra8 {[%emt 0:02:03]} 31. f5 {[%emt 0:05:01]} Qc3 {[%emt 0:01:16]} 32. fxg6 {[%emt 0:02:56]} hxg6 {[%emt 0:00:18]} 33. Qf2 {[%emt 0:00:56]} Qxe5 {[%emt 0:00:31]} 34. Rf1 {[%emt 0:00:26]} Rf8 {[%emt 0:00:12]} 35. Qf3 {[%emt 0:00:17]} Kg7 {[%emt 0:00:32]} 36. Qa3 {[%emt 0:00:22]} Rh8 {[%emt 0:00:24]} 37. h3 {[%emt 0:00:19]} Qd4 {[%emt 0:04:51]} 38. Bxa4 {[%emt 0:00:50]} Nxe4 {[%emt 0:01:49]} 39. Qf3 {[%emt 0:00:32]} f5 {[%emt 0:00:23]} 40. Bc6 {[%emt 0:00:00]} Nd2 {[%emt 0:00:00]} 41. Qf2 {[%emt 0:03:17]} Qxf2 {[%emt 0:01:14]} 42. Rxf2 {[%emt 0:00:02]} Nxc4 {[%emt 0:00:23]} 43. Rc2 {[%emt 0:00:25]} Nd6 {[%emt 0:00:18]} 44. Bd7 {[%emt 0:00:15]} c5 {[%emt 0:00:44]} 45. Bxe6 {[%emt 0:00:07]} Kf6 {[%emt 0:00:08]} 46. Bd5 {[%emt 0:00:05]} Ke5 {[%emt 0:00:13]} 47. Bf3 {[%emt 0:00:14]} Ne4 {[%emt 0:00:32]} 48. Rb2 {[%emt 0:00:32]} Rb8 {[%emt 0:00:07]} 49. Kg1 {[%emt 0:00:20]} b5 {[%emt 0:00:09]} 50. Be2 {[%emt 0:00:09]} b4 {[%emt 0:00:14]} 51. Bc4 {[%emt 0:00:33]} Kd4 {[%emt 0:00:11]} 52. Bf7 {[%emt 0:00:14]} Kc3 {[%emt 0:00:15]} 53. Rb3+ {[%emt 0:00:12]} Kc2 {[%emt 0:00:19]} 54. Re3 {[%emt 0:00:14]} b3 {[%emt 0:00:29]} 55. Re2+ {[%emt 0:00:07]} Kd3 {[%emt 0:00:19]} 56. Rb2 {[%emt 0:00:11]} c4 {[%emt 0:00:13]} 57. g4 {[%emt 0:00:12]} Kc3 {[%emt 0:00:47]} 58. Rb1 {[%emt 0:00:10]} Kc2 {[%emt 0:00:39]} 59. Re1 {[%emt 0:00:06]} b2 {[%emt 0:00:20]} 60. Re2+ {[%emt 0:00:10]} Kd3 {[%emt 0:00:16]} 0-1